[Event "Early-Titled-Tuesday-Blitz-April-16-2024"]
[Site "Chess.com"]
[Date "2024.04.16"]
[Round "5"]
[White "Leo_C"]
[Black "BilodeauA"]
[Result "0-1"]
[WhiteElo "2658"]
[BlackElo "2970"]
[TimeControl "180+1"]
[EndTime "8:56:13 PDT"]
[Termination "BilodeauA won on time"]

1. e4 {[%clk 0:03:00.9]} 1... c5 {[%clk 0:02:58.2]} 2. Nf3 {[%clk 0:03:00.8]}
2... Nc6 {[%clk 0:02:58.1]} 3. Bb5 {[%clk 0:03:00.6]} 3... g6 {[%clk 0:02:56.4]}
4. O-O {[%clk 0:03:00.7]} 4... Bg7 {[%clk 0:02:56.4]} 5. Re1 {[%clk 0:03:00.9]}
5... a6 {[%clk 0:02:57]} 6. Bxc6 {[%clk 0:02:56.6]} 6... dxc6 {[%clk 0:02:57.4]}
7. d3 {[%clk 0:02:54.6]} 7... Nf6 {[%clk 0:02:51.5]} 8. Nbd2 {[%clk 0:02:52]}
8... O-O {[%clk 0:02:50.9]} 9. h3 {[%clk 0:02:50.8]} 9... Ne8 {[%clk 0:02:45.8]}
10. a4 {[%clk 0:02:47.6]} 10... a5 {[%clk 0:02:42.6]} 11. Nc4 {[%clk 0:02:36.9]}
11... Nc7 {[%clk 0:02:34.1]} 12. Ra2 {[%clk 0:02:02.3]} 12... Ne6 {[%clk
0:02:31.7]} 13. Be3 {[%clk 0:01:57]} 13... b6 {[%clk 0:02:32.1]} 14. Ng5 {[%clk
0:01:50.3]} 14... Nd4 {[%clk 0:02:19.6]} 15. Nf3 {[%clk 0:01:41.1]} 15... Be6
{[%clk 0:02:13.6]} 16. b3 {[%clk 0:01:34.5]} 16... h6 {[%clk 0:02:07.1]} 17.
Nxd4 {[%clk 0:01:31.3]} 17... cxd4 {[%clk 0:02:05]} 18. Bd2 {[%clk 0:01:31]}
18... Kh7 {[%clk 0:02:01.9]} 19. f4 {[%clk 0:01:28.7]} 19... f5 {[%clk
0:01:54.3]} 20. exf5 {[%clk 0:01:25]} 20... Bxf5 {[%clk 0:01:55.2]} 21. Qf3
{[%clk 0:01:18.4]} 21... Qc7 {[%clk 0:01:49.4]} 22. Ne5 {[%clk 0:01:16.6]} 22...
c5 {[%clk 0:01:44.7]} 23. Raa1 {[%clk 0:01:04.6]} 23... Rae8 {[%clk 0:01:40.3]}
24. Re2 {[%clk 0:01:01.7]} 24... Bc8 {[%clk 0:01:38.7]} 25. Rae1 {[%clk
0:00:59.6]} 25... Bb7 {[%clk 0:01:38.9]} 26. Qg3 {[%clk 0:00:59.8]} 26... Rf6
{[%clk 0:01:36]} 27. Ng4 {[%clk 0:00:57.6]} 27... Rf5 {[%clk 0:01:23.9]} 28. Re6
{[%clk 0:00:42.5]} 28... g5 {[%clk 0:00:42.8]} 29. Nxh6 {[%clk 0:00:40.7]} 29...
Bxh6 {[%clk 0:00:40.9]} 30. Rxh6+ {[%clk 0:00:40.6]} 30... Kg7 {[%clk
0:00:35.1]} 31. Rh5 {[%clk 0:00:37.7]} 31... Rg8 {[%clk 0:00:33.3]} 32. Rxg5+
{[%clk 0:00:36.9]} 32... Rxg5 {[%clk 0:00:33.3]} 33. Qxg5+ {[%clk 0:00:37]}
33... Kf8 {[%clk 0:00:32.7]} 34. Qf5+ {[%clk 0:00:31.4]} 34... Ke8 {[%clk
0:00:32.5]} 35. Re2 {[%clk 0:00:31.3]} 35... Qc6 {[%clk 0:00:32]} 36. Qe4 {[%clk
0:00:13.5]} 36... Qd7 {[%clk 0:00:32.2]} 37. Qe5 {[%clk 0:00:10.3]} 37... Bf3
{[%clk 0:00:25.8]} 38. Rf2 {[%clk 0:00:06.9]} 38... Bc6 {[%clk 0:00:25.3]} 39.
Qb8+ {[%clk 0:00:04]} 39... Kf7 {[%clk 0:00:25.5]} 40. Qxb6 {[%clk 0:00:04.1]}
40... Qd5 {[%clk 0:00:17.9]} 41. Kf1 {[%clk 0:00:01.9]} 41... Rxg2 {[%clk
0:00:18.4]} 0-1

[Event "Early-Titled-Tuesday-Blitz-April-16-2024"]
[Site "Chess.com"]
[Date "2024.04.16"]
[Round "5"]
[White "Bastiandash"]
[Black "ferdipy"]
[Result "1-0"]
[WhiteElo "2541"]
[BlackElo "2282"]
[TimeControl "180+1"]
[EndTime "8:56:14 PDT"]
[Termination "Bastiandash won by checkmate"]

1. e4 {[%clk 0:02:52.7]} 1... e6 {[%clk 0:00:23.1]} 2. Qe2 {[%clk 0:00:24.6]}
2... d5 {[%clk 0:00:24]} 3. d3 {[%clk 0:00:24.7]} 3... Nf6 {[%clk 0:00:24.1]} 4.
Nd2 {[%clk 0:00:24.7]} 4... Be7 {[%clk 0:00:23.7]} 5. Ngf3 {[%clk 0:00:25.1]}
5... dxe4 {[%clk 0:00:24.3]} 6. dxe4 {[%clk 0:00:25.3]} 6... Nc6 {[%clk
0:00:24.6]} 7. g3 {[%clk 0:00:24.8]} 7... e5 {[%clk 0:00:25.2]} 8. Bg2 {[%clk
0:00:25.3]} 8... Bg4 {[%clk 0:00:25.7]} 9. c3 {[%clk 0:00:25.2]} 9... Qd7 {[%clk
0:00:25.1]} 10. h3 {[%clk 0:00:25.4]} 10... Bh5 {[%clk 0:00:24.7]} 11. O-O
{[%clk 0:00:24.4]} 11... O-O {[%clk 0:00:24.3]} 12. Nc4 {[%clk 0:00:24.9]} 12...
Bd6 {[%clk 0:00:19.7]} 13. Rd1 {[%clk 0:00:23.3]} 13... Qe6 {[%clk 0:00:16.7]}
14. Nxd6 {[%clk 0:00:17.4]} 14... cxd6 {[%clk 0:00:16.7]} 15. Bg5 {[%clk
0:00:17.3]} 15... Bg6 {[%clk 0:00:15.2]} 16. Bxf6 {[%clk 0:00:15.6]} 16... Qxf6
{[%clk 0:00:15.3]} 17. Rd2 {[%clk 0:00:12.5]} 17... Rfd8 {[%clk 0:00:15.4]} 18.
Rad1 {[%clk 0:00:12.9]} 18... Rd7 {[%clk 0:00:16]} 19. Qe3 {[%clk 0:00:13.3]}
19... Rad8 {[%clk 0:00:16.3]} 20. Nh2 {[%clk 0:00:12.5]} 20... Qe6 {[%clk
0:00:16]} 21. Bf3 {[%clk 0:00:12.2]} 21... Qxa2 {[%clk 0:00:14]} 22. Bg4 {[%clk
0:00:11.8]} 22... Rc7 {[%clk 0:00:14.5]} 23. Rxd6 {[%clk 0:00:11.3]} 23... Rxd6
{[%clk 0:00:15.2]} 24. Rxd6 {[%clk 0:00:12.2]} 24... h6 {[%clk 0:00:14.5]} 25.
Kg2 {[%clk 0:00:11.8]} 25... Qxb2 {[%clk 0:00:14.1]} 26. Bf5 {[%clk 0:00:09.2]}
26... Bxf5 {[%clk 0:00:08.8]} 27. exf5 {[%clk 0:00:10.1]} 27... Qa3 {[%clk
0:00:09.3]} 28. Rd3 {[%clk 0:00:07.5]} 28... Qe7 {[%clk 0:00:08.8]} 29. Ng4
{[%clk 0:00:07.6]} 29... f6 {[%clk 0:00:08]} 30. Qd2 {[%clk 0:00:07.3]} 30... e4
{[%clk 0:00:07.2]} 31. Rd5 {[%clk 0:00:07.8]} 31... Ne5 {[%clk 0:00:05.5]} 32.
Nxe5 {[%clk 0:00:07.5]} 32... fxe5 {[%clk 0:00:06.4]} 33. Qe3 {[%clk 0:00:07.9]}
33... Rc4 {[%clk 0:00:05.6]} 34. Qxa7 {[%clk 0:00:06.3]} 34... Qc7 {[%clk
0:00:05.8]} 35. Qa8+ {[%clk 0:00:06.2]} 35... Kh7 {[%clk 0:00:05.8]} 36. Rd8
{[%clk 0:00:06.7]} 36... h5 {[%clk 0:00:05]} 37. Rh8# {[%clk 0:00:06.6]} 1-0

[Event "Early-Titled-Tuesday-Blitz-April-16-2024"]
[Site "Chess.com"]
[Date "2024.04.16"]
[Round "5"]
[White "pfalcon1949"]
[Black "kekic76"]
[Result "1-0"]
[WhiteElo "1933"]
[BlackElo "2333"]
[TimeControl "180+1"]
[EndTime "8:56:16 PDT"]
[Termination "pfalcon1949 won on time"]

1. e4 {[%clk 0:02:54.8]} 1... c6 {[%clk 0:02:56.6]} 2. d4 {[%clk 0:02:53.9]}
2... d5 {[%clk 0:02:54.6]} 3. e5 {[%clk 0:02:54.3]} 3... Bf5 {[%clk 0:02:54.3]}
4. h4 {[%clk 0:02:54.5]} 4... h5 {[%clk 0:02:53.3]} 5. Bg5 {[%clk 0:02:54.4]}
5... Qb6 {[%clk 0:02:49.1]} 6. Bd3 {[%clk 0:02:54.3]} 6... Bxd3 {[%clk
0:02:46.9]} 7. Qxd3 {[%clk 0:02:54.3]} 7... e6 {[%clk 0:02:47.1]} 8. Nd2 {[%clk
0:02:52.8]} 8... Be7 {[%clk 0:02:38.5]} 9. c4 {[%clk 0:02:44.2]} 9... dxc4
{[%clk 0:02:35.7]} 10. Nxc4 {[%clk 0:02:43.3]} 10... Qc7 {[%clk 0:02:28.6]} 11.
Bxe7 {[%clk 0:02:41.8]} 11... Nxe7 {[%clk 0:02:20.2]} 12. Nd6+ {[%clk
0:02:42.7]} 12... Kf8 {[%clk 0:02:19]} 13. Qf3 {[%clk 0:02:34.5]} 13... Nd5
{[%clk 0:01:56.8]} 14. Nh3 {[%clk 0:02:26.7]} 14... Qe7 {[%clk 0:01:47.9]} 15.
Ng5 {[%clk 0:02:20.1]} 15... f6 {[%clk 0:01:47.7]} 16. exf6 {[%clk 0:02:09.6]}
16... gxf6 {[%clk 0:01:33.3]} 17. Nde4 {[%clk 0:01:40.7]} 17... Nd7 {[%clk
0:01:14.2]} 18. O-O-O {[%clk 0:01:29.2]} 18... c5 {[%clk 0:01:09.9]} 19. Kb1
{[%clk 0:01:23.3]} 19... cxd4 {[%clk 0:00:59.1]} 20. Rxd4 {[%clk 0:01:20]} 20...
Ne5 {[%clk 0:00:59.6]} 21. Qg3 {[%clk 0:00:41]} 21... Nc6 {[%clk 0:00:56]} 22.
Nc5 {[%clk 0:00:20.1]} 22... fxg5 {[%clk 0:00:37.4]} 23. Rd3 {[%clk 0:00:15.8]}
23... g4 {[%clk 0:00:16]} 24. f3 {[%clk 0:00:11.9]} 24... Qxc5 {[%clk
0:00:13.9]} 25. fxg4 {[%clk 0:00:10.6]} 25... Ke7 {[%clk 0:00:12.1]} 26. Re1
{[%clk 0:00:10.4]} 26... Kd7 {[%clk 0:00:11]} 27. Qf3 {[%clk 0:00:09.2]} 27...
Raf8 {[%clk 0:00:09.4]} 28. Qe2 {[%clk 0:00:08.7]} 28... Re8 {[%clk 0:00:08]}
29. gxh5 {[%clk 0:00:09]} 29... Ne7 {[%clk 0:00:06]} 30. g4 {[%clk 0:00:09.2]}
30... Qd6 {[%clk 0:00:06]} 31. Red1 {[%clk 0:00:08.8]} 31... Rc8 {[%clk
0:00:04.6]} 32. g5 {[%clk 0:00:09.2]} 32... Rhf8 {[%clk 0:00:03.7]} 33. g6
{[%clk 0:00:09.2]} 33... Nf5 {[%clk 0:00:01.4]} 34. Qd2 {[%clk 0:00:08.9]} 34...
Rfe8 {[%clk 0:00:01.2]} 35. h6 {[%clk 0:00:08.5]} 1-0

[Event "Early-Titled-Tuesday-Blitz-April-16-2024"]
[Site "Chess.com"]
[Date "2024.04.16"]
[Round "5"]
[White "Vahe_Danielyan"]
[Black "RobertoJBM"]
[Result "0-1"]
[WhiteElo "2604"]
[BlackElo "2898"]
[TimeControl "180+1"]
[EndTime "8:56:19 PDT"]
[Termination "RobertoJBM won by resignation"]

1. d4 {[%clk 0:03:00.9]} 1... d5 {[%clk 0:02:59.8]} 2. c4 {[%clk 0:02:59.8]}
2... c6 {[%clk 0:02:59.6]} 3. Nc3 {[%clk 0:02:57.8]} 3... Nf6 {[%clk 0:02:59.5]}
4. Nf3 {[%clk 0:02:50.6]} 4... dxc4 {[%clk 0:02:58.5]} 5. a4 {[%clk 0:02:48.5]}
5... Bf5 {[%clk 0:02:56.9]} 6. e3 {[%clk 0:02:46.1]} 6... e6 {[%clk 0:02:56.6]}
7. Bxc4 {[%clk 0:02:46.6]} 7... Bb4 {[%clk 0:02:56.7]} 8. O-O {[%clk 0:02:44.5]}
8... O-O {[%clk 0:02:56.7]} 9. Qe2 {[%clk 0:02:42.4]} 9... Ne4 {[%clk
0:02:50.3]} 10. Na2 {[%clk 0:02:33.6]} 10... Be7 {[%clk 0:02:48.9]} 11. Ne5
{[%clk 0:02:31.7]} 11... h6 {[%clk 0:02:46.1]} 12. f3 {[%clk 0:02:31.9]} 12...
Nd6 {[%clk 0:02:44.3]} 13. Bb3 {[%clk 0:02:31.2]} 13... Nd7 {[%clk 0:02:40.6]}
14. e4 {[%clk 0:02:31.1]} 14... Bh7 {[%clk 0:02:39.9]} 15. Nxd7 {[%clk
0:02:27.4]} 15... Qxd7 {[%clk 0:02:40]} 16. Be3 {[%clk 0:02:28.3]} 16... Rfd8
{[%clk 0:02:37.3]} 17. Rfd1 {[%clk 0:02:25.7]} 17... Kh8 {[%clk 0:02:30.7]} 18.
Rac1 {[%clk 0:02:26]} 18... a5 {[%clk 0:02:26.1]} 19. Nc3 {[%clk 0:02:18.5]}
19... Rac8 {[%clk 0:02:24.2]} 20. Qf2 {[%clk 0:02:14.2]} 20... Bg8 {[%clk
0:02:20.7]} 21. Ne2 {[%clk 0:02:14]} 21... Ne8 {[%clk 0:02:17]} 22. Nf4 {[%clk
0:02:12.7]} 22... Nf6 {[%clk 0:02:04]} 23. Qc2 {[%clk 0:01:54.4]} 23... Qc7
{[%clk 0:01:57.7]} 24. Bxe6 {[%clk 0:01:50.8]} 24... Rb8 {[%clk 0:01:37.7]} 25.
e5 {[%clk 0:01:49.8]} 25... Nh7 {[%clk 0:01:32.3]} 26. Bb3 {[%clk 0:01:28.7]}
26... Qb6 {[%clk 0:01:30.4]} 27. Bf2 {[%clk 0:01:24.9]} 27... Bg5 {[%clk
0:01:30]} 28. g3 {[%clk 0:01:20.5]} 28... Nf8 {[%clk 0:01:23]} 29. d5 {[%clk
0:01:16.5]} 29... Qb4 {[%clk 0:01:23.1]} 30. d6 {[%clk 0:01:16.9]} 30... Bxf4
{[%clk 0:01:22]} 31. gxf4 {[%clk 0:01:13.7]} 31... Qxf4 {[%clk 0:01:22.9]} 32.
Bg3 {[%clk 0:01:06.6]} 32... Qxf3 {[%clk 0:01:20.8]} 33. Rd3 {[%clk 0:01:02]}
33... Qe4 {[%clk 0:01:17.5]} 34. Re1 {[%clk 0:01:00.1]} 34... Qg6 {[%clk
0:01:16.2]} 35. Qe2 {[%clk 0:00:47.3]} 35... Ne6 {[%clk 0:01:14.9]} 36. Rf1
{[%clk 0:00:41.1]} 36... b5 {[%clk 0:01:01.7]} 37. axb5 {[%clk 0:00:38.5]} 37...
Rxb5 {[%clk 0:01:01]} 38. Bc4 {[%clk 0:00:39.2]} 38... Rb4 {[%clk 0:00:59.2]}
39. b3 {[%clk 0:00:39.1]} 39... a4 {[%clk 0:00:53.4]} 40. Qd2 {[%clk 0:00:39.4]}
40... Rdb8 {[%clk 0:00:47.7]} 41. d7 {[%clk 0:00:32.4]} 41... axb3 {[%clk
0:00:40.1]} 42. Bxe6 {[%clk 0:00:31.9]} 42... Qxe6 {[%clk 0:00:40.2]} 43. d8=Q
{[%clk 0:00:32.4]} 43... b2 {[%clk 0:00:40.1]} 44. Rf6 {[%clk 0:00:17.8]} 44...
b1=Q+ {[%clk 0:00:38.5]} 45. Kg2 {[%clk 0:00:17.9]} 45... Rxd8 {[%clk
0:00:20.6]} 46. Rxd8 {[%clk 0:00:13.2]} 46... Rb2 {[%clk 0:00:19.3]} 0-1

[Event "Early-Titled-Tuesday-Blitz-April-16-2024"]
[Site "Chess.com"]
[Date "2024.04.16"]
[Round "5"]
[White "Polish_fighter3000"]
[Black "Koalaskakistis"]
[Result "1-0"]
[WhiteElo "3154"]
[BlackElo "2574"]
[TimeControl "180+1"]
[EndTime "8:56:26 PDT"]
[Termination "Polish_fighter3000 won on time"]

1. d4 {[%clk 0:02:55.9]} 1... f5 {[%clk 0:02:55]} 2. h3 {[%clk 0:02:52.2]} 2...
d6 {[%clk 0:02:45.4]} 3. g4 {[%clk 0:02:46]} 3... fxg4 {[%clk 0:02:45.3]} 4. Qd3
{[%clk 0:02:45.5]} 4... g3 {[%clk 0:02:44.3]} 5. Qxg3 {[%clk 0:02:43.4]} 5...
Nf6 {[%clk 0:02:44.4]} 6. Bg2 {[%clk 0:02:35.2]} 6... Nc6 {[%clk 0:02:43.1]} 7.
Qc3 {[%clk 0:02:17.3]} 7... d5 {[%clk 0:02:38.9]} 8. a3 {[%clk 0:02:01.5]} 8...
Bf5 {[%clk 0:02:38.1]} 9. Bf4 {[%clk 0:02:00.2]} 9... e6 {[%clk 0:02:37.2]} 10.
Nd2 {[%clk 0:01:59.1]} 10... Bd6 {[%clk 0:02:37.3]} 11. Bxd6 {[%clk 0:01:57.3]}
11... cxd6 {[%clk 0:02:38.2]} 12. e3 {[%clk 0:01:53]} 12... O-O {[%clk
0:02:36.1]} 13. Qb3 {[%clk 0:01:52.4]} 13... Na5 {[%clk 0:02:33]} 14. Qa4 {[%clk
0:01:51.6]} 14... b5 {[%clk 0:02:29.2]} 15. Qb4 {[%clk 0:01:26]} 15... Bxc2
{[%clk 0:02:28.9]} 16. Rc1 {[%clk 0:01:25]} 16... Bd3 {[%clk 0:02:23.5]} 17. Ne2
{[%clk 0:01:16.1]} 17... Nh5 {[%clk 0:02:02.6]} 18. Bf3 {[%clk 0:01:03.9]} 18...
Rxf3 {[%clk 0:01:39.4]} 19. Nxf3 {[%clk 0:01:04.8]} 19... Be4 {[%clk 0:01:39.6]}
20. Neg1 {[%clk 0:01:01.9]} 20... Nc4 {[%clk 0:01:36.8]} 21. Rh2 {[%clk
0:00:57.8]} 21... a5 {[%clk 0:01:25.2]} 22. Qc3 {[%clk 0:00:57.9]} 22... b4
{[%clk 0:01:25.5]} 23. axb4 {[%clk 0:00:55.5]} 23... axb4 {[%clk 0:01:26.4]} 24.
Qb3 {[%clk 0:00:51.7]} 24... Qf6 {[%clk 0:00:32.9]} 25. Nd2 {[%clk 0:00:48.1]}
25... Nxd2 {[%clk 0:00:32.8]} 26. Kxd2 {[%clk 0:00:49]} 26... Nf4 {[%clk
0:00:32.8]} 27. f3 {[%clk 0:00:39]} 27... Bg6 {[%clk 0:00:31.1]} 28. Qxb4 {[%clk
0:00:20.1]} 28... Nd3 {[%clk 0:00:30.8]} 29. Qb7 {[%clk 0:00:20.7]} 29... Rf8
{[%clk 0:00:27.2]} 30. Rc7 {[%clk 0:00:19.3]} 30... Qg5 {[%clk 0:00:21.6]} 31.
Rxg7+ {[%clk 0:00:17.9]} 31... Kh8 {[%clk 0:00:22.2]} 32. Qe7 {[%clk 0:00:10.3]}
32... Qxe7 {[%clk 0:00:04.6]} 33. Rxe7 {[%clk 0:00:11.2]} 33... Rb8 {[%clk
0:00:04.7]} 34. Rc7 {[%clk 0:00:10.7]} 34... Rxb2+ {[%clk 0:00:05]} 35. Rc2
{[%clk 0:00:11.2]} 35... Rb1 {[%clk 0:00:03.5]} 36. Ne2 {[%clk 0:00:10.5]} 36...
Ne1 {[%clk 0:00:04.2]} 37. Rc8+ {[%clk 0:00:09]} 37... Kg7 {[%clk 0:00:04.8]}
38. Rf2 {[%clk 0:00:09.1]} 38... Nd3 {[%clk 0:00:04.6]} 39. Rg2 {[%clk
0:00:09.2]} 39... Rb2+ {[%clk 0:00:04.4]} 40. Kc3 {[%clk 0:00:08.8]} 40... Rb1
{[%clk 0:00:01.4]} 41. Rxg6+ {[%clk 0:00:08.1]} 41... hxg6 {[%clk 0:00:01.2]}
42. Kxd3 {[%clk 0:00:09]} 1-0

[Event "Early-Titled-Tuesday-Blitz-April-16-2024"]
[Site "Chess.com"]
[Date "2024.04.16"]
[Round "5"]
[White "Iskusnyh"]
[Black "DanylaBagrov"]
[Result "0-1"]
[WhiteElo "2602"]
[BlackElo "2485"]
[TimeControl "180+1"]
[EndTime "8:56:26 PDT"]
[Termination "DanylaBagrov won by resignation"]

1. d4 {[%clk 0:02:52.9]} 1... d6 {[%clk 0:02:54.2]} 2. Nf3 {[%clk 0:02:51.8]}
2... f5 {[%clk 0:02:54.4]} 3. c4 {[%clk 0:02:47.4]} 3... Nf6 {[%clk 0:02:54]} 4.
e3 {[%clk 0:02:46.9]} 4... g6 {[%clk 0:02:53.9]} 5. Be2 {[%clk 0:02:45.1]} 5...
Bg7 {[%clk 0:02:54.3]} 6. Nc3 {[%clk 0:02:45]} 6... O-O {[%clk 0:02:54.1]} 7.
O-O {[%clk 0:02:44.5]} 7... c6 {[%clk 0:02:54.2]} 8. b4 {[%clk 0:02:44.4]} 8...
Na6 {[%clk 0:02:47.3]} 9. b5 {[%clk 0:02:40]} 9... Nc7 {[%clk 0:02:46.9]} 10. a4
{[%clk 0:02:37.4]} 10... c5 {[%clk 0:02:36]} 11. dxc5 {[%clk 0:02:33.3]} 11...
Ne4 {[%clk 0:02:36.1]} 12. Nxe4 {[%clk 0:02:12.3]} 12... fxe4 {[%clk 0:02:37]}
13. Nd4 {[%clk 0:02:05]} 13... dxc5 {[%clk 0:02:37]} 14. Nb3 {[%clk 0:02:04.1]}
14... Qxd1 {[%clk 0:02:27.7]} 15. Rxd1 {[%clk 0:02:03.7]} 15... Bxa1 {[%clk
0:02:28.1]} 16. Nxa1 {[%clk 0:02:04.6]} 16... Be6 {[%clk 0:02:24.3]} 17. Nb3
{[%clk 0:02:03]} 17... b6 {[%clk 0:02:20.2]} 18. Bb2 {[%clk 0:02:02.1]} 18...
Rad8 {[%clk 0:02:20]} 19. Ra1 {[%clk 0:02:01.4]} 19... Ne8 {[%clk 0:02:08.7]}
20. Bc3 {[%clk 0:01:55.1]} 20... Nd6 {[%clk 0:02:07.2]} 21. Nd2 {[%clk
0:01:54.7]} 21... Rd7 {[%clk 0:01:51.7]} 22. Kf1 {[%clk 0:01:51.4]} 22... Nb7
{[%clk 0:01:43.5]} 23. Nxe4 {[%clk 0:01:44.3]} 23... Bf5 {[%clk 0:01:44.1]} 24.
Nd2 {[%clk 0:01:43.2]} 24... Bd3 {[%clk 0:01:44.6]} 25. Ke1 {[%clk 0:01:35.8]}
25... e6 {[%clk 0:01:37.2]} 26. Bf3 {[%clk 0:01:33.1]} 26... Nd6 {[%clk
0:01:34.3]} 27. Be2 {[%clk 0:01:25.6]} 27... Ne4 {[%clk 0:01:12.9]} 28. Nxe4
{[%clk 0:01:23.3]} 28... Bxe4 {[%clk 0:01:13.4]} 29. a5 {[%clk 0:01:20.8]} 29...
Bxg2 {[%clk 0:00:59.8]} 30. axb6 {[%clk 0:01:19.8]} 30... axb6 {[%clk
0:01:00.7]} 31. Ra6 {[%clk 0:01:19.5]} 31... Rb7 {[%clk 0:01:01.3]} 32. Bg4
{[%clk 0:01:17.9]} 32... Re8 {[%clk 0:00:39.7]} 33. h4 {[%clk 0:01:14.5]} 33...
Be4 {[%clk 0:00:39.8]} 34. Be5 {[%clk 0:01:03.2]} 34... Kf7 {[%clk 0:00:39.3]}
35. Kd2 {[%clk 0:01:02.4]} 35... h5 {[%clk 0:00:39.4]} 36. Be2 {[%clk
0:01:01.4]} 36... Rd8+ {[%clk 0:00:39.4]} 37. Kc3 {[%clk 0:01:01.5]} 37... Ke7
{[%clk 0:00:37]} 38. f3 {[%clk 0:01:00.8]} 38... Bf5 {[%clk 0:00:35]} 39. e4
{[%clk 0:01:00.9]} 39... Bh3 {[%clk 0:00:35.7]} 40. Ra1 {[%clk 0:00:59.4]} 40...
Rf8 {[%clk 0:00:32.7]} 41. Rg1 {[%clk 0:00:58.4]} 41... Ra7 {[%clk 0:00:30.7]}
42. Rg3 {[%clk 0:00:53.4]} 42... Ra2 {[%clk 0:00:28.3]} 43. Bd3 {[%clk
0:00:50.8]} 43... Bg2 {[%clk 0:00:27.7]} 44. Rxg6 {[%clk 0:00:49.4]} 44... Rxf3
{[%clk 0:00:24.3]} 45. Rg7+ {[%clk 0:00:48]} 45... Kf8 {[%clk 0:00:24]} 46. Rd7
{[%clk 0:00:45]} 46... Bf1 {[%clk 0:00:21.5]} 47. Bc7 {[%clk 0:00:39.5]} 47...
Bxd3 {[%clk 0:00:20.8]} 0-1

[Event "Early-Titled-Tuesday-Blitz-April-16-2024"]
[Site "Chess.com"]
[Date "2024.04.16"]
[Round "5"]
[White "Korchmar_Vasiliy"]
[Black "AnishOnYoutube"]
[Result "0-1"]
[WhiteElo "2708"]
[BlackElo "3043"]
[TimeControl "180+1"]
[EndTime "8:56:28 PDT"]
[Termination "AnishOnYoutube won on time"]

1. e4 {[%clk 0:03:00.9]} 1... c5 {[%clk 0:03:00.2]} 2. d4 {[%clk 0:03:00.9]}
2... cxd4 {[%clk 0:03:00.5]} 3. Qxd4 {[%clk 0:03:01.8]} 3... Nc6 {[%clk
0:03:00.3]} 4. Qd3 {[%clk 0:03:02.4]} 4... g6 {[%clk 0:02:59.2]} 5. Nc3 {[%clk
0:03:02.6]} 5... Bg7 {[%clk 0:02:58.7]} 6. Nf3 {[%clk 0:03:03.2]} 6... Nf6
{[%clk 0:02:57.4]} 7. Be2 {[%clk 0:03:03.7]} 7... O-O {[%clk 0:02:57.2]} 8. O-O
{[%clk 0:03:04.4]} 8... d6 {[%clk 0:02:57.5]} 9. Nd5 {[%clk 0:03:05.1]} 9... Nd7
{[%clk 0:02:55.2]} 10. c3 {[%clk 0:03:04.8]} 10... b6 {[%clk 0:02:55.4]} 11. Bg5
{[%clk 0:03:02.4]} 11... Bb7 {[%clk 0:02:53.5]} 12. Rad1 {[%clk 0:02:57.4]}
12... h6 {[%clk 0:02:49.2]} 13. Bh4 {[%clk 0:02:55.4]} 13... g5 {[%clk
0:02:31.8]} 14. Bg3 {[%clk 0:02:55.5]} 14... Nde5 {[%clk 0:02:32.4]} 15. Nxe5
{[%clk 0:02:54.1]} 15... dxe5 {[%clk 0:02:29.6]} 16. Qb1 {[%clk 0:02:18.1]}
16... e6 {[%clk 0:02:29.1]} 17. Ne3 {[%clk 0:02:14.3]} 17... Qc7 {[%clk
0:02:29.3]} 18. h4 {[%clk 0:02:11.3]} 18... Ne7 {[%clk 0:02:25.5]} 19. hxg5
{[%clk 0:02:05.8]} 19... hxg5 {[%clk 0:02:25.8]} 20. Nc4 {[%clk 0:01:47.3]}
20... Rab8 {[%clk 0:01:55.3]} 21. Qc1 {[%clk 0:01:42.3]} 21... Bxe4 {[%clk
0:01:37]} 22. Qxg5 {[%clk 0:01:38.2]} 22... f6 {[%clk 0:01:37.3]} 23. Qh5 {[%clk
0:01:25.4]} 23... Bg6 {[%clk 0:01:35.8]} 24. Qh3 {[%clk 0:01:26]} 24... Nf5
{[%clk 0:01:33.5]} 25. Bh2 {[%clk 0:01:10.9]} 25... Rbd8 {[%clk 0:01:30.6]} 26.
Ne3 {[%clk 0:01:01.9]} 26... Qf7 {[%clk 0:01:20.2]} 27. Bc4 {[%clk 0:00:54.8]}
27... Rfe8 {[%clk 0:01:15]} 28. a4 {[%clk 0:00:44.3]} 28... Nd6 {[%clk
0:00:50.9]} 29. Ba2 {[%clk 0:00:39.6]} 29... f5 {[%clk 0:00:50.6]} 30. Rxd6
{[%clk 0:00:31.9]} 30... Rxd6 {[%clk 0:00:49.7]} 31. Nc4 {[%clk 0:00:32.5]}
31... Rd5 {[%clk 0:00:47.2]} 32. Re1 {[%clk 0:00:30.3]} 32... f4 {[%clk
0:00:32.8]} 33. g3 {[%clk 0:00:21.8]} 33... Red8 {[%clk 0:00:25.2]} 34. Bb3
{[%clk 0:00:16.5]} 34... f3 {[%clk 0:00:20.5]} 35. g4 {[%clk 0:00:14.9]} 35...
e4 {[%clk 0:00:21]} 36. Ne3 {[%clk 0:00:09.9]} 36... Rd2 {[%clk 0:00:21.3]} 37.
g5 {[%clk 0:00:10.2]} 37... Re8 {[%clk 0:00:15]} 38. Nc4 {[%clk 0:00:08.7]}
38... Re2 {[%clk 0:00:15.7]} 39. Rd1 {[%clk 0:00:08.4]} 39... Bf5 {[%clk
0:00:16.3]} 40. Qh4 {[%clk 0:00:06.7]} 40... Qg6 {[%clk 0:00:12.8]} 41. Bf4
{[%clk 0:00:03.1]} 41... Qh7 {[%clk 0:00:12.8]} 42. Qxh7+ {[%clk 0:00:01.9]}
42... Kxh7 {[%clk 0:00:13.1]} 43. Rd7 {[%clk 0:00:01.9]} 43... Kg6 {[%clk
0:00:11.6]} 44. Ne3 {[%clk 0:00:01.4]} 44... Rh8 {[%clk 0:00:11.2]} 0-1